fUST/lending_fUST_20250610
["ID","MTS","AMOUNT","RATE_DAILY","PERIOD"]
[365243476,1749561057274,-460.0,0.00024109,4]
[365243477,1749561057284,-514.93,0.00024109,4]
[365243478,1749561057293,-460.0,0.00024109,4]
[365243479,1749561057303,-1402.9,0.00024109,4]
[365243480,1749561057313,-460.0,0.00024109,4]
[365243481,1749561057323,-460.0,0.00024109,4]
[365243482,1749561057333,-460.0,0.00024109,4]
[365243483,1749561057466,-476.21,0.00024109,4]
[365243484,1749561057476,-460.0,0.00024109,4]
[365243485,1749561057485,-220.0,0.00024109,4]
[365243486,1749561057495,-570.54,0.00024109,4]
[365243487,1749561057506,-462.2,0.00024109,4]
[365243488,1749561057516,-460.0,0.00024109,4]
[365243489,1749561057526,-2814.84,0.00024109,4]
[365243490,1749561057537,-1561.2,0.00024109,4]
[365243491,1749561057547,-572.65,0.00024109,4]
[365243492,1749561057558,-301.43630465,0.00024109,4]
[365243493,1749561057569,-3102.55,0.00024109,4]
[365243494,1749561057579,-460.0,0.00024109,4]
[365243495,1749561057590,-460.0,0.00024109,4]
[365243496,1749561057600,-1032.23,0.00024109,4]
[365243497,1749561057610,-460.0,0.00024109,4]
[365243498,1749561057620,-691.63,0.00024109,4]
[365243499,1749561057629,-2508.23,0.00024109,4]
[365243500,1749561057639,-460.0,0.00024109,4]
[365243501,1749561057648,-1142.03,0.00024109,4]
[365243502,1749561057658,-2970.71,0.00024109,4]
[365243503,1749561057667,-764.17,0.00024109,4]
[365243504,1749561057676,-563.30582452,0.00024109,4]
[365243505,1749561057686,-2964.47,0.00024109,4]
[365243506,1749561057696,-1685.96,0.00024109,4]
[365243507,1749561057706,-603.4,0.00024109,4]
[365243508,1749561057715,-741.45,0.00024109,2]
[365243509,1749561057725,-460.0,0.00024109,4]
[365243510,1749561057736,-657.06,0.00024109,4]
[365243511,1749561057746,-460.0,0.00024109,4]
[365243512,1749561057755,-1753.44,0.00024109,4]
[365243513,1749561057765,-460.0,0.00024109,4]
[365243514,1749561057775,-2332.21,0.00024109,4]
[365243515,1749561057785,-3000.0,0.00024112,2]
[365243516,1749561057795,-1224.45207528,0.00024112,2]
[365243517,1749561057804,-300.0,0.00024153,2]
[365243518,1749561057814,-2591.48635313,0.00024165,2]
[365243519,1749561057824,-1047.60775708,0.0002421,10]
[365243520,1749561057834,-306.7585254,0.00024274,2]
[365243521,1749561057843,-2591.48635313,0.00024306,2]
[365243522,1749561057852,-14567.44833832,0.0002432,7]
[365243523,1749561057862,-35823.45682028,0.0002432,7]
[365243524,1749561057871,-1047.60775708,0.00024348,11]
[365243525,1749561057881,-215.0738,0.00024358,2]
[365243526,1749561057890,-460.0,0.00024383,4]
[365243527,1749561057900,-548.64,0.00024383,4]
[365243528,1749561057909,-743.81,0.00024383,4]
[365243529,1749561057918,-240.0,0.00024383,4]
[365243530,1749561057928,-460.0,0.00024383,4]
[365243531,1749561057939,-460.0,0.00024383,4]
[365243532,1749561057948,-460.0,0.00024383,4]
[365243533,1749561057958,-460.0,0.00024383,4]
[365243534,1749561057968,-460.0,0.00024383,4]
[365243535,1749561057977,-734.77,0.00024383,4]
[365243536,1749561057987,-460.0,0.00024383,4]
[365243537,1749561057996,-801.41,0.00024383,4]
[365243538,1749561058006,-1658.85,0.00024383,4]
[365243539,1749561058015,-460.0,0.00024383,4]
[365243540,1749561058025,-1213.09,0.00024383,4]
[365243541,1749561058035,-460.0,0.00024383,4]
[365243542,1749561058044,-514.93,0.00024383,4]
[365243543,1749561058054,-460.0,0.00024383,4]
[365243544,1749561058064,-1402.9,0.00024383,4]
[365243545,1749561058073,-460.0,0.00024383,4]
[365243546,1749561058083,-460.0,0.00024383,4]
[365243547,1749561058093,-460.0,0.00024383,4]
[365243548,1749561058102,-476.21,0.00024383,4]
[365243549,1749561058112,-460.0,0.00024383,4]
[365243550,1749561058121,-570.54,0.00024383,4]
[365243551,1749561058131,-462.2,0.00024383,4]
[365243552,1749561058143,-460.0,0.00024383,4]
[365243553,1749561058152,-2814.84,0.00024383,4]
[365243554,1749561058162,-1561.2,0.00024383,4]
[365243555,1749561058172,-572.65,0.00024383,4]
[365243556,1749561058182,-3102.55,0.00024383,4]
[365243557,1749561058193,-460.0,0.00024383,4]
[365243558,1749561058207,-460.0,0.00024383,4]
[365243559,1749561058217,-1032.23,0.00024383,4]
[365243560,1749561058226,-460.0,0.00024383,4]
[365243561,1749561058236,-691.63,0.00024383,4]
[365243562,1749561058246,-2508.23,0.00024383,4]
[365243563,1749561058255,-460.0,0.00024383,4]
[365243564,1749561058264,-1142.03,0.00024383,4]
[365243565,1749561058274,-2970.71,0.00024383,4]
[365243566,1749561058283,-764.17,0.00024383,4]
[365243567,1749561058293,-2964.47,0.00024383,4]
[365243568,1749561058302,-1685.96,0.00024383,4]
[365243569,1749561058312,-603.4,0.00024383,4]
[365243570,1749561058322,-741.45,0.00024383,2]
[365243571,1749561058331,-520.04000001,0.00024383,4]
[365243572,1749561058340,-657.06,0.00024383,4]
[365243573,1749561058350,-460.0,0.00024383,4]
[365243574,1749561058360,-1753.44,0.00024383,4]
[365243576,1749561058369,-460.0,0.00024383,4]
[365243578,1749561058379,-2332.21,0.00024383,4]
[365243580,1749561058389,-3600.0,0.00024412,2]
[365243582,1749561058399,-618.66544871,0.00024444,5]
[365243584,1749561058408,-2591.48635313,0.00024446,2]
[365243585,1749561058418,-1047.60775708,0.00024486,11]
[365243587,1749561058428,-151.0,0.000245,10]
[365243589,1749561058437,-5000.0,0.00024586,2]
[365243590,1749561058447,-5000.0,0.00024586,2]
[365243591,1749561058456,-5000.0,0.00024586,2]
[365243592,1749561058466,-5000.0,0.00024586,2]
[365243593,1749561058475,-2591.48635313,0.00024587,2]
[365243594,1749561058484,-800.0,0.0002459,2]
[365243595,1749561058494,-2767.85521879,0.00024599,5]
[365243596,1749561058504,-155.292,0.00024613,2]
[365243597,1749561058513,-151.0,0.00024613,7]
[365243598,1749561058524,-1047.60775708,0.00024624,11]
[365243599,1749561058534,-5000.0,0.00024633,2]
[365243600,1749561058543,-151.0,0.00024644,7]
[365243601,1749561058553,-460.0,0.00024657,4]
[365243602,1749561058563,-548.64,0.00024657,4]
[365243603,1749561058573,-743.81,0.00024657,4]
[365243604,1749561058583,-492.9263497,0.00024657,4]
[365243605,1749561058592,-460.0,0.00024657,4]
[365243606,1749561058602,-460.0,0.00024657,4]
[365243607,1749561058612,-460.0,0.00024657,4]
[365243608,1749561058622,-460.0,0.00024657,4]
[365243609,1749561058631,-734.77,0.00024657,4]
[365243610,1749561058640,-460.0,0.00024657,4]
[365243611,1749561058650,-801.41,0.00024657,4]
[365243612,1749561058660,-1658.85,0.00024657,4]
[365243613,1749561058670,-460.0,0.00024657,4]
[365243614,1749561058680,-1213.09,0.00024657,4]
[365243615,1749561058690,-460.0,0.00024657,4]
[365243616,1749561058700,-514.93,0.00024657,4]
[365243617,1749561058709,-460.0,0.00024657,4]
[365243618,1749561058719,-1402.9,0.00024657,4]
[365243619,1749561058729,-460.0,0.00024657,4]
[365243620,1749561058739,-460.0,0.00024657,4]
[365243621,1749561058749,-460.0,0.00024657,4]
[365243622,1749561058758,-476.21,0.00024657,4]
[365243623,1749561058768,-460.0,0.00024657,4]
[365243624,1749561058777,-570.54,0.00024657,4]
[365243625,1749561058787,-462.2,0.00024657,4]
[365243626,1749561058796,-460.0,0.00024657,4]
[365243627,1749561058806,-2814.84,0.00024657,4]
[365243628,1749561058815,-1561.2,0.00024657,4]
[365243629,1749561058825,-572.65,0.00024657,4]
[365243630,1749561058835,-3102.55,0.00024657,4]
[365243631,1749561058845,-460.0,0.00024657,4]
[365243632,1749561058855,-460.0,0.00024657,4]
[365243633,1749561058864,-1032.23,0.00024657,4]
[365243634,1749561058874,-460.0,0.00024657,4]
[365243635,1749561058883,-691.63,0.00024657,4]
[365243636,1749561058892,-2508.23,0.00024657,4]
[365243637,1749561058901,-460.0,0.00024657,4]
[365243638,1749561058911,-1142.03,0.00024657,4]
[365243639,1749561058920,-2970.71,0.00024657,4]
[365243640,1749561058929,-764.17,0.00024657,4]
[365243641,1749561058938,-2964.47,0.00024657,4]
[365243642,1749561058948,-1685.96,0.00024657,4]
[365243643,1749561058958,-603.4,0.00024657,4]
[365243644,1749561058967,-741.45,0.00024657,2]
[365243645,1749561058977,-657.06,0.00024657,4]
[365243646,1749561058986,-183.41479128,0.00024657,4]
[365243647,1749561058996,-1753.44,0.00024657,4]
[365243648,1749561059006,-460.0,0.00024657,4]
[365243649,1749561059015,-2332.21,0.00024657,4]
[365243650,1749561059025,-380.0,0.00024658,2]
[365243651,1749561059034,-200.0,0.00024658,15]
[365243652,1749561059044,-800.0,0.0002466,2]
[365243653,1749561059054,-2037.57378164,0.0002466,2]
[365243654,1749561059064,-182.94440693,0.00024672,2]
[365243655,1749561059072,-1018.309317,0.0002468,7]
[365243656,1749561059082,-160.0,0.00024701,4]
[365243657,1749561059091,-160.91209467,0.00024701,5]
[365243658,1749561059102,-153.0,0.00024706,2]
[365243659,1749561059112,-153.0,0.00024706,2]
[365243660,1749561059121,-153.0,0.00024706,2]
[365243661,1749561059133,-153.0,0.00024706,2]
[365243662,1749561059143,-153.0,0.00024706,2]
[365243663,1749561059153,-153.0,0.00024706,2]
[365243664,1749561059163,-153.0,0.00024706,2]
[365243665,1749561059173,-153.0,0.00024706,2]
[365243666,1749561059183,-153.0,0.00024706,2]
[365243667,1749561059193,-153.0,0.00024706,2]
[365243668,1749561059202,-153.0,0.00024706,2]
[365243669,1749561059215,-153.0,0.00024706,2]
[365243670,1749561059225,-153.0,0.00024706,2]
[365243671,1749561059235,-153.0,0.00024707,2]
[365243672,1749561059244,-153.0,0.00024707,2]
[365243673,1749561059254,-153.0,0.00024707,2]
[365243674,1749561059263,-153.0,0.00024707,2]
[365243675,1749561059272,-153.0,0.00024707,2]
[365243676,1749561059281,-153.0,0.00024708,2]
[365243677,1749561059291,-153.0,0.00024708,2]
[365243678,1749561059301,-153.0,0.00024708,2]
[365243679,1749561059311,-153.0,0.00024708,2]
[365243680,1749561059321,-153.0,0.00024708,2]
[365243681,1749561059332,-153.0,0.00024708,2]
[365243682,1749561059342,-153.0,0.00024708,2]
[365243683,1749561059352,-153.0,0.00024708,2]
[365243684,1749561059362,-153.0,0.00024708,2]
[365243685,1749561059372,-153.0,0.00024708,2]
[365243686,1749561059382,-153.0,0.00024708,2]
[365243687,1749561059391,-16343.54423796,0.0002471,2]
[365243688,1749561059400,-75499.01066981,0.0002471,2]
[365243689,1749561059409,-65307.12306117,0.0002471,120]
[365243690,1749561059429,-3417.4368,0.0002471,120]
[365243691,1749561059440,-263640.26725533,0.0002471,120]
[365243692,1749561059626,-4401.51327333,0.0002471,120]
[365243700,1749561294651,444.453682,0.00013699,2]
[365243702,1749561329794,2062.73,0.00024657,120]
[365243745,1749561795709,635.566,0.00024839,60]
[365243748,1749561826872,16569.69057575,0.0002465,120]
[365243749,1749561841531,1734.96882188,0.00017828,2]
[365243849,1749562194811,1000.0,0.00024,120]
[365243850,1749562203564,1000.0,0.00024658,120]
[365243919,1749562232325,-158.87343722,0.0001922,2]
[365243921,1749562232335,-184.561926,0.00019245,2]
[365243923,1749562232344,-300.0,0.00019756,2]
[365243925,1749562232353,-300.0,0.00019756,2]
[365243926,1749562232362,-300.0,0.00019757,2]
[365243928,1749562232372,-1200.0,0.00019757,2]
[365243930,1749562232381,-977.4255787,0.00019757,2]
[365243932,1749562232391,-24900.0,0.00019758,2]
[365243933,1749562232400,-1100.0,0.00019778,2]
[365243935,1749562232409,-1264.98,0.00019836,2]
[365243936,1749562232419,-187.78650869,0.0002004,2]
[365243937,1749562232428,-166.175933,0.00020148,2]
[365243938,1749562232437,-444.453682,0.00020187,2]
[365243939,1749562232446,-210.501,0.00020381,2]
[365243940,1749562232455,-2529.97,0.0002078,2]
[365243941,1749562232465,-242.35139154,0.000209,4]
[365243942,1749562232475,-9533.08767222,0.00020973,2]
[365243943,1749562232484,-1000.0,0.00021,21]
[365243944,1749562232494,-242.35139132,0.00021038,4]
[365243945,1749562232503,-710.29,0.00021062,10]
[365243946,1749562232513,-591.91,0.00021062,10]
[365243947,1749562232523,-676778.96349,0.00021072,2]
[365243948,1749562232532,-372.48068192,0.00021073,2]
[365243949,1749562232541,-501.67014915,0.00021073,2]
[365243950,1749562232551,-500.0,0.00021073,2]
[365243951,1749562232565,-500.27378623,0.00021073,2]
[365243952,1749562232574,-500.0,0.00021073,2]
[365243953,1749562232583,-500.0,0.00021073,2]
[365243954,1749562232594,-500.0,0.00021073,2]
[365243955,1749562232603,-500.0,0.00021073,2]
[365243956,1749562232613,-500.0,0.00021073,2]
[365243957,1749562232623,-500.0,0.00021073,2]
[365243958,1749562232633,-500.0,0.00021073,2]
[365243959,1749562232645,-501.02187263,0.00021073,2]
[365243960,1749562232658,-500.0,0.00021073,2]
[365243961,1749562232670,-500.0,0.00021073,2]
[365243962,1749562232684,-503.02975535,0.00021073,2]
[365243963,1749562232697,-210.59816182,0.00021073,2]
[365243964,1749562232709,-511.14518257,0.00021073,2]
[365243965,1749562232720,-500.0,0.00021073,2]
[365243966,1749562232731,-503.93213778,0.00021073,2]
[365243967,1749562232741,-304.43,0.00021085,3]
[365243968,1749562232754,-152.22,0.00021085,3]
[365243969,1749562232765,-456.67,0.00021085,3]
[365243970,1749562232776,-852.35,0.00021085,10]
[365243971,1749562232788,-155.964,0.00021094,2]
[365243972,1749562232801,-500.0,0.00021094,2]
[365243973,1749562232815,-500.0,0.00021094,2]
[365243974,1749562232827,-500.0,0.00021094,2]
[365243975,1749562232840,-500.0,0.00021094,2]
[365243976,1749562232853,-500.0,0.00021094,2]
[365243977,1749562232865,-440.0,0.00021095,4]
[365243978,1749562232877,-440.0,0.00021095,4]
[365243979,1749562232891,-440.0,0.00021095,4]
[365243980,1749562232903,-440.0,0.00021095,4]
[365243981,1749562232915,-440.0,0.00021095,4]
[365243982,1749562232926,-460.0,0.00021095,4]
[365243983,1749562232939,-440.0,0.00021095,4]
[365243984,1749562232950,-432.99145016,0.00021095,4]
[365243985,1749562232962,-407.40205969,0.00021095,4]
[365243986,1749562232973,-460.0,0.00021095,4]
[365243987,1749562232985,-440.0,0.00021095,4]
[365243988,1749562232997,-424.41347965,0.00021095,4]
[365243989,1749562233009,-460.0,0.00021095,4]
[365243990,1749562233020,-460.0,0.00021095,4]
[365243991,1749562233033,-460.0,0.00021095,4]
[365243992,1749562233044,-440.0,0.00021095,4]
[365243993,1749562233055,-460.0,0.00021095,4]
[365243994,1749562233066,-460.0,0.00021095,4]
[365243995,1749562233079,-440.0,0.00021095,4]
[365243996,1749562233091,-460.0,0.00021095,4]
[365243997,1749562233102,-432.04839916,0.00021095,4]
[365243998,1749562233115,-430.0,0.00021095,4]
[365243999,1749562233127,-460.0,0.00021095,4]
[365244000,1749562233140,-430.0,0.00021095,4]
[365244001,1749562233153,-460.0,0.00021095,4]
[365244002,1749562233165,-460.0,0.00021095,4]
[365244003,1749562233176,-561.83503069,0.00021095,4]
[365244004,1749562233190,-460.0,0.00021095,4]
[365244005,1749562233203,-400.0,0.00021095,4]
[365244006,1749562233216,-460.0,0.00021095,4]
[365244007,1749562233230,-460.0,0.00021095,4]
[365244008,1749562233243,-460.0,0.00021095,4]
[365244009,1749562233256,-460.0,0.00021095,4]
[365244010,1749562233267,-460.0,0.00021095,4]
[365244011,1749562233278,-440.0,0.00021095,4]
[365244012,1749562233289,-400.0,0.00021095,4]
[365244013,1749562233300,-460.0,0.00021095,4]
[365244014,1749562233314,-430.0,0.00021095,4]
[365244015,1749562233325,-460.0,0.00021095,4]
[365244016,1749562233337,-430.0,0.00021095,4]
[365244017,1749562233351,-460.0,0.00021095,4]
[365244018,1749562233363,-460.0,0.00021095,4]
[365244019,1749562233376,-435.40676977,0.00021095,4]
[365244020,1749562233388,-400.0,0.00021095,4]
[365244021,1749562233400,-430.0,0.00021095,4]
[365244022,1749562233411,-460.0,0.00021095,4]
[365244023,1749562233423,-400.0,0.00021095,4]
[365244024,1749562233435,-460.0,0.00021095,4]
[365244025,1749562233448,-460.0,0.00021095,4]
[365244026,1749562233460,-460.0,0.00021095,4]
[365244027,1749562233471,-460.0,0.00021095,4]
[365244028,1749562233482,-440.0,0.00021095,4]
[365244029,1749562233493,-440.0,0.00021095,4]
[365244030,1749562233504,-460.0,0.00021095,4]
[365244031,1749562233515,-307.45812481,0.00021095,4]
[365244032,1749562233526,-353.20165156,0.00021095,4]
[365244033,1749562233537,-403.19112572,0.00021095,4]
[365244034,1749562233551,-298.79108871,0.00021095,4]
[365244035,1749562233562,-440.0,0.00021095,4]
[365244036,1749562233573,-438.12996127,0.00021095,4]
[365244037,1749562233586,-440.0,0.00021095,4]
[365244038,1749562233602,-440.0,0.00021095,4]
[365244039,1749562233614,-460.0,0.00021095,4]
[365244040,1749562233627,-400.0,0.00021095,4]
[365244041,1749562233641,-426.63972116,0.00021095,4]
[365244042,1749562233654,-484.73081392,0.00021095,4]
[365244043,1749562233666,-460.0,0.00021095,4]
[365244044,1749562233678,-430.66173541,0.00021095,4]
[365244045,1749562233689,-440.0,0.00021095,4]
[365244046,1749562233701,-403.36382887,0.00021095,4]
[365244047,1749562233713,-460.0,0.00021095,4]
[365244048,1749562233725,-440.0,0.00021095,4]
[365244049,1749562233736,-400.0,0.00021095,4]
[365244050,1749562233747,-440.0,0.00021095,4]
[365244051,1749562233759,-470.0,0.00021095,4]
[365244052,1749562233770,-430.0,0.00021095,4]
[365244053,1749562233781,-440.0,0.00021095,4]
[365244054,1749562233793,-440.0,0.00021095,4]
[365244055,1749562233805,-460.0,0.00021095,4]
[365244056,1749562233816,-440.0,0.00021095,4]
[365244057,1749562233828,-430.0,0.00021095,4]
[365244058,1749562233839,-199.84403477,0.00021095,4]
[365244059,1749562233850,-430.0,0.00021095,4]
[365244060,1749562233862,-440.0,0.00021095,4]
[365244061,1749562233874,-430.0,0.00021095,4]
[365244062,1749562233886,-460.0,0.00021095,4]
[365244063,1749562233897,-460.0,0.00021095,4]
[365244064,1749562233909,-460.0,0.00021095,4]
[365244065,1749562233921,-460.0,0.00021095,4]
[365244066,1749562233933,-460.0,0.00021095,4]
[365244067,1749562233945,-430.0,0.00021095,4]
[365244068,1749562233957,-460.0,0.00021095,4]
[365244069,1749562233969,-486.6,0.00021095,4]
[365244070,1749562233981,-440.0,0.00021095,4]
[365244071,1749562233994,-440.0,0.00021095,4]
[365244072,1749562234006,-441.10784655,0.00021095,4]
[365244073,1749562234019,-433.09996263,0.00021095,4]
[365244074,1749562234030,-460.0,0.00021095,4]
[365244075,1749562234045,-460.0,0.00021095,4]
[365244076,1749562234059,-460.0,0.00021095,4]
[365244077,1749562234072,-460.0,0.00021095,4]
[365244078,1749562234083,-326.78767519,0.00021095,4]
[365244079,1749562234096,-460.0,0.00021095,4]
[365244080,1749562234107,-323.97083194,0.00021095,4]
[365244081,1749562234119,-460.0,0.00021095,4]
[365244082,1749562234130,-331.50666071,0.00021095,4]
[365244083,1749562234142,-460.0,0.00021095,4]
[365244084,1749562234153,-394.47152268,0.00021095,4]
[365244085,1749562234165,-460.0,0.00021095,4]
[365244086,1749562234177,-460.0,0.00021095,4]
[365244087,1749562234188,-460.0,0.00021095,4]
[365244088,1749562234200,-460.0,0.00021095,4]
[365244089,1749562234211,-565.07,0.00021095,4]
[365244090,1749562234223,-460.0,0.00021095,4]
[365244091,1749562234234,-460.0,0.00021095,4]
[365244092,1749562234246,-460.0,0.00021095,4]
[365244093,1749562234257,-440.0,0.00021095,4]
[365244094,1749562234269,-460.0,0.00021095,4]
[365244095,1749562234281,-460.0,0.00021095,4]
[365244096,1749562234293,-460.0,0.00021095,4]
[365244097,1749562234306,-430.0,0.00021095,4]
[365244098,1749562234319,-460.0,0.00021095,4]
[365244099,1749562234330,-460.0,0.00021095,4]
[365244100,1749562234342,-460.0,0.00021095,4]
[365244101,1749562234354,-440.0,0.00021095,4]
[365244102,1749562234366,-460.0,0.00021095,4]
[365244103,1749562234377,-460.0,0.00021095,4]
[365244104,1749562234389,-460.0,0.00021095,4]
[365244105,1749562234403,-460.0,0.00021095,4]
[365244106,1749562234415,-460.0,0.00021095,4]
[365244107,1749562234428,-460.0,0.00021095,4]
[365244108,1749562234440,-460.0,0.00021095,4]
[365244109,1749562234452,-460.0,0.00021095,4]
[365244110,1749562234464,-460.0,0.00021095,4]
[365244111,1749562234476,-440.0,0.00021095,4]
[365244112,1749562234488,-460.0,0.00021095,4]
[365244113,1749562234499,-460.0,0.00021095,4]
[365244114,1749562234511,-303.94458186,0.00021095,4]
[365244115,1749562234522,-460.0,0.00021095,4]
[365244116,1749562234533,-432.42692126,0.00021095,4]
[365244117,1749562234545,-500.0,0.00021095,4]
[365244118,1749562234559,-518.51994288,0.00021095,4]
[365244119,1749562234571,-401.30912747,0.00021095,4]
[365244120,1749562234582,-430.0,0.00021095,4]
[365244121,1749562234593,-292.26217688,0.00021095,4]
[365244122,1749562234605,-460.0,0.00021095,4]
[365244123,1749562234616,-460.0,0.00021095,4]
[365244124,1749562234627,-201.05149936,0.00021095,4]
[365244125,1749562234639,-450.57450537,0.00021095,4]
[365244126,1749562234651,-460.0,0.00021095,4]
[365244127,1749562234662,-460.0,0.00021095,4]
[365244128,1749562234673,-460.0,0.00021095,4]
[365244129,1749562234684,-460.0,0.00021095,4]
[365244130,1749562234694,-165.91,0.00021095,4]
[365244131,1749562234920,-460.0,0.00021095,4]
[365244132,1749562234930,-452.82746323,0.00021095,4]
[365244133,1749562234941,-434.71521467,0.00021095,4]
[365244134,1749562234951,-400.0,0.00021095,4]
[365244135,1749562234960,-460.0,0.00021095,4]
[365244136,1749562234970,-460.0,0.00021095,4]
[365244137,1749562234980,-430.0,0.00021095,4]
[365244138,1749562234990,-450.0,0.00021095,4]
[365244139,1749562234999,-430.0,0.00021095,4]
[365244140,1749562235009,-440.0,0.00021095,4]
[365244141,1749562235018,-622.36519226,0.00021095,4]
[365244142,1749562235027,-440.0,0.00021095,4]
[365244143,1749562235037,-460.0,0.00021095,4]
[365244144,1749562235046,-418.61908252,0.00021095,4]
[365244145,1749562235058,-440.0,0.00021095,4]
[365244146,1749562235067,-460.0,0.00021095,4]
[365244147,1749562235076,-440.0,0.00021095,4]
[365244148,1749562235087,-454.0935569,0.00021095,4]
[365244149,1749562235097,-430.0,0.00021095,4]
[365244150,1749562235107,-460.0,0.00021095,4]
[365244151,1749562235116,-460.0,0.00021095,4]
[365244152,1749562235126,-460.0,0.00021095,4]
[365244153,1749562235135,-460.0,0.00021095,4]
[365244154,1749562235145,-460.0,0.00021095,4]
[365244155,1749562235154,-460.0,0.00021095,4]
[365244156,1749562235164,-440.0,0.00021095,4]
[365244157,1749562235173,-432.75659421,0.00021095,4]
[365244158,1749562235183,-460.0,0.00021095,4]
[365244159,1749562235192,-404.15921709,0.00021095,2]
[365244160,1749562235202,-460.0,0.00021095,4]
[365244161,1749562235211,-460.0,0.00021095,4]
[365244162,1749562235223,-460.0,0.00021095,4]
[365244163,1749562235232,-402.86698581,0.00021095,4]
[365244164,1749562235242,-460.0,0.00021095,4]
[365244165,1749562235252,-440.0,0.00021095,4]
[365244166,1749562235261,-500.0,0.00021095,4]
[365244167,1749562235271,-500.0,0.00021095,4]
[365244168,1749562235281,-500.0,0.00021095,4]
[365244169,1749562235290,-500.0,0.00021095,4]
[365244170,1749562235299,-500.0,0.00021095,4]
[365244171,1749562235310,-500.0,0.00021095,4]
[365244172,1749562235320,-500.0,0.00021095,4]
[365244173,1749562235330,-500.0,0.00021095,4]
[365244174,1749562235340,-460.0,0.00021095,4]
[365244175,1749562235350,-440.0,0.00021095,4]
[365244176,1749562235359,-420.0,0.00021095,4]
[365244177,1749562235369,-460.0,0.00021095,4]
[365244178,1749562235379,-440.0,0.00021095,4]
[365244179,1749562235389,-460.0,0.00021095,4]
[365244180,1749562235398,-440.0,0.00021095,4]
[365244181,1749562235408,-430.0,0.00021095,4]
[365244182,1749562235418,-420.0,0.00021095,4]
[365244183,1749562235427,-460.0,0.00021095,4]
[365244184,1749562235437,-460.0,0.00021095,4]
[365244185,1749562235447,-523.3586186,0.00021095,4]
[365244186,1749562235456,-460.0,0.00021095,4]
[365244187,1749562235466,-442.72039857,0.00021095,4]
[365244188,1749562235475,-431.10680584,0.00021095,4]
[365244189,1749562235484,-460.0,0.00021095,4]
[365244190,1749562235494,-460.0,0.00021095,4]
[365244191,1749562235503,-460.0,0.00021095,4]
[365244192,1749562235512,-460.0,0.00021095,4]
[365244193,1749562235522,-440.0,0.00021095,4]
[365244194,1749562235532,-450.0,0.00021095,4]
[365244195,1749562235541,-506.69204781,0.00021095,4]
[365244196,1749562235552,-432.17249315,0.00021095,4]
[365244197,1749562235565,-430.0,0.00021095,4]
[365244198,1749562235575,-440.0,0.00021095,4]
[365244199,1749562235584,-455.37653614,0.00021095,4]
[365244200,1749562235594,-460.0,0.00021095,4]
[365244201,1749562235603,-460.0,0.00021095,4]
[365244202,1749562235613,-500.0,0.00021095,4]
[365244203,1749562235622,-500.0,0.00021095,4]
[365244204,1749562235633,-500.0,0.00021095,4]
[365244205,1749562235643,-500.0,0.00021095,4]
[365244206,1749562235653,-568.48418366,0.00021095,4]
[365244207,1749562235662,-460.0,0.00021095,4]
[365244208,1749562235672,-400.0,0.00021095,4]